bitfinex/quotes_BTCUSD_20250131
["timestamp","ask_amount","ask_price","bid_price","bid_amount"]
[1738354760598,1.93666728,102220.0,102210.0,7.8e-07]
[1738354760896,1.91143142,102220.0,102210.0,7.8e-07]
[1738354761098,1.93148864,102220.0,102210.0,7.8e-07]
[1738354761498,1.93158864,102220.0,102210.0,7.8e-07]
[1738354761703,1.74477478,102220.0,102210.0,7.8e-07]
[1738354761930,1.95852864,102220.0,102210.0,7.8e-07]
[1738354762156,1.77387478,102220.0,102210.0,7.8e-07]
[1738354762334,1.77377478,102220.0,102210.0,7.8e-07]
[1738354762509,2.06752864,102220.0,102210.0,7.8e-07]
[1738354762711,2.04752864,102220.0,102210.0,7.8e-07]
[1738354763368,2.05252864,102220.0,102210.0,7.8e-07]
[1738354764163,2.07252864,102220.0,102210.0,7.8e-07]
[1738354764372,2.05252864,102220.0,102210.0,7.8e-07]
[1738354764790,2.06455961,102220.0,102210.0,7.8e-07]
[1738354765566,2.08979547,102220.0,102210.0,7.8e-07]
[1738354765775,0.146814,102170.0,102160.0,0.01015599]
[1738354765978,1.11129578,102170.0,102160.0,0.01015599]
[1738354766175,1.30504964,102170.0,102160.0,0.02410159]
[1738354766585,1.11129578,102170.0,102160.0,0.02410159]
[1738354766815,1.11229578,102170.0,102160.0,0.03110159]
[1738354767037,1.11229578,102170.0,102160.0,0.27531692]
[1738354767038,0.96548178,102170.0,102160.0,0.27531692]
[1738354767211,0.001,102170.0,102160.0,0.27531692]
[1738354767642,0.002,102170.0,102160.0,0.27831692]
[1738354768006,0.002,102170.0,102160.0,0.42831692]
[1738354768208,0.002,102170.0,102160.0,1.09901692]
[1738354768408,0.001,102170.0,102160.0,1.09201692]
[1738354768838,0.002,102170.0,102160.0,1.09011692]
[1738354769244,0.001,102170.0,102160.0,1.09201692]
[1738354769450,0.002,102170.0,102160.0,1.08911692]
[1738354769807,0.002,102170.0,102160.0,1.09901692]
[1738354770621,0.002,102170.0,102160.0,1.11901692]
[1738354770834,0.001,102170.0,102160.0,1.63667078]
[1738354771035,0.001,102170.0,102160.0,1.44291692]
[1738354771447,1.30692278,102210.0,102200.0,0.0755]
[1738354771735,1.11123778,102210.0,102200.0,0.1086185]
[1738354771940,0.14675,102220.0,102210.0,0.0099]
[1738354772369,0.146756,102210.0,102200.0,0.1086185]
[1738354772575,1.30499164,102210.0,102200.0,0.0755]
[1738354773218,0.146771,102200.0,102190.0,0.5519]
[1738354773407,0.34052486,102200.0,102190.0,0.542]
[1738354773541,0.146771,102200.0,102190.0,0.5519]
[1738354775345,0.34052486,102200.0,102190.0,0.5519]
[1738354775774,0.146785,102190.0,102180.0,0.0803]
[1738354775988,1.30502064,102190.0,102180.0,0.00014417]
[1738354776211,1.4022638,102190.0,102180.0,0.00014417]
[1738354776615,1.5522638,102190.0,102180.0,0.00014417]
[1738354777040,1.5753638,102190.0,102180.0,1.7e-07]
[1738354777250,1.69672056,102190.0,102180.0,1.7e-07]
[1738354778965,0.70742172,102170.0,102160.0,9.9e-07]
[1738354779125,1.79618666,102170.0,102160.0,9.9e-07]
[1738354779752,0.319842,102150.0,102140.0,9.8e-07]
[1738354779955,1.5753208,102150.0,102140.0,9.8e-07]
[1738354780167,1.5754208,102150.0,102140.0,9.8e-07]
[1738354780409,1.62160079,102150.0,102140.0,9.8e-07]
[1738354780695,1.62160079,102150.0,102130.0,6.861e-05]
[1738354780696,0.146886,102120.0,102110.0,0.08228562]
[1738354780912,1.30512164,102120.0,102110.0,0.08242981]
[1738354781118,1.30512164,102120.0,102110.0,0.08136977]
[1738354784651,1.30712164,102120.0,102110.0,0.08136977]
[1738354784859,1.30712164,102120.0,102110.0,0.00014419]
[1738354785092,1.76486786,102120.0,102110.0,0.00014419]
[1738354785311,1.79010469,102120.0,102110.0,0.00014419]
[1738354785720,1.76486786,102120.0,102110.0,0.00014419]
[1738354785920,1.571114,102120.0,102110.0,0.00014419]
[1738354786199,1.569114,102120.0,102110.0,0.00014419]
[1738354786610,1.32187084,102120.0,102110.0,0.00014419]
[1738354786967,1.31216164,102120.0,102110.0,0.00014419]
[1738354787438,1.31616164,102120.0,102110.0,0.00014419]
[1738354787640,1.32116164,102120.0,102110.0,0.01004419]
[1738354787852,1.12240778,102120.0,102110.0,0.01004419]
[1738354788093,1.11536778,102120.0,102110.0,0.01004419]
[1738354788290,1.13140778,102120.0,102110.0,0.04543834]
[1738354788498,0.013,102120.0,102110.0,0.37306077]
[1738354788699,0.013,102120.0,102110.0,0.3720815]
[1738354789120,0.013,102120.0,102110.0,0.4172815]
[1738354789326,0.013,102120.0,102110.0,0.5672815]
[1738354789534,0.146886,102120.0,102110.0,0.7631415]
[1738354789745,0.53647486,102130.0,102120.0,0.0099]
[1738354789958,0.53647486,102130.0,102120.0,0.05511343]
[1738354790387,0.53647486,102130.0,102120.0,0.0099]
[1738354790796,0.342721,102130.0,102120.0,0.0099]
[1738354791015,0.146883,102130.0,102120.0,0.25500831]
[1738354791218,0.53644386,102140.0,102130.0,0.0099]
[1738354792256,0.53644386,102140.0,102120.0,0.09724316]
[1738354792462,0.34062486,102130.0,102120.0,0.0099]
[1738354793367,0.146871,102130.0,102120.0,0.0099]
[1738354793803,0.14712742,102130.0,102120.0,0.156786]
[1738354794037,0.00025642,102130.0,102120.0,0.25402916]
[1738354794243,0.00225642,102130.0,102120.0,0.94602916]
[1738354794448,0.00225642,102130.0,102120.0,1.02722916]
[1738354795454,0.00025642,102130.0,102120.0,1.02722916]
[1738354795861,0.00025642,102130.0,102120.0,1.05022916]
[1738354796061,0.00025642,102130.0,102120.0,1.09952916]
[1738354796419,0.00125642,102130.0,102120.0,1.07852916]
[1738354796981,0.00125642,102130.0,102120.0,1.08452916]
[1738354797568,0.00125642,102130.0,102120.0,1.10752916]
[1738354798418,0.00125642,102130.0,102120.0,1.08452916]
[1738354798833,0.19501028,102130.0,102120.0,1.07462916]
[1738354799045,0.34188128,102130.0,102120.0,0.0892]
[1738354799217,0.34188128,102130.0,102120.0,0.19634316]
[1738354799426,0.00125642,102130.0,102120.0,0.49322916]
[1738354799931,0.34188128,102130.0,102120.0,0.0931]
[1738354800148,0.34188128,102130.0,102120.0,0.007]
[1738354800361,1.40360622,102130.0,102120.0,0.007]
[1738354800564,1.69471684,102130.0,102120.0,0.007]
[1738354800716,1.50800298,102130.0,102120.0,0.007]
[1738354800920,1.50800298,102130.0,102120.0,0.005]
[1738354800921,1.31240306,102130.0,102120.0,0.005]
[1738354801299,1.50221906,102130.0,102120.0,0.0099]
[1738354801493,1.50825906,102130.0,102120.0,0.0099]
[1738354801683,0.146886,102120.0,102110.0,0.01016629]
[1738354801888,0.34063986,102120.0,102110.0,0.05353362]
[1738354802417,1.69806406,102130.0,102110.0,0.20043362]
[1738354802600,0.00125642,102130.0,102120.0,0.01087922]
[1738354802813,0.15012742,102130.0,102120.0,0.01087913]
[1738354802947,0.14912742,102130.0,102120.0,0.0099]
[1738354803157,0.14912742,102130.0,102120.0,0.04714025]
[1738354803408,0.00425642,102130.0,102120.0,0.19402625]
[1738354803925,0.00025642,102130.0,102120.0,0.19402625]
[1738354804058,0.00025642,102130.0,102120.0,0.52064854]
[1738354804263,0.19401028,102130.0,102120.0,0.51966941]
[1738354804495,0.14712742,102130.0,102120.0,0.51966941]
[1738354804705,0.00025642,102130.0,102120.0,0.51966941]
[1738354804951,0.14912742,102130.0,102120.0,0.51966941]
[1738354805156,0.34288128,102130.0,102120.0,0.22278341]
[1738354805377,0.34288128,102130.0,102120.0,0.21278341]
[1738354805574,0.34288128,102130.0,102120.0,0.35966941]
[1738354805928,0.34288128,102130.0,102110.0,0.13346629]
[1738354805929,0.146886,102120.0,102110.0,0.13346629]
[1738354806165,1.30512164,102120.0,102110.0,0.08676629]
[1738354807223,0.00025642,102130.0,102120.0,0.156786]
[1738354807436,0.00025642,102130.0,102120.0,0.0099]
[1738354807644,0.14712742,102130.0,102120.0,0.156786]
[1738354808054,0.14712742,102130.0,102120.0,0.0099]
[1738354808165,0.34088128,102130.0,102120.0,0.0099]
[1738354808380,0.34288128,102130.0,102120.0,0.0099]
[1738354808887,0.14912742,102130.0,102120.0,0.156786]
[1738354809108,0.00225642,102130.0,102120.0,0.4050083]
[1738354809242,0.00225642,102130.0,102120.0,1.09402916]
[1738354809872,0.00225642,102130.0,102120.0,1.07102916]
[1738354812771,0.00025642,102130.0,102120.0,1.07102916]
[1738354813186,0.00125642,102130.0,102120.0,1.07702916]
[1738354813587,0.00125642,102130.0,102120.0,0.92702916]
[1738354814256,0.14812742,102130.0,102120.0,0.38502916]
[1738354814459,0.14712742,102130.0,102120.0,0.38402916]
[1738354814648,0.34088128,102130.0,102120.0,0.38502916]
[1738354814856,0.34188128,102130.0,102120.0,0.22324316]
[1738354814993,0.34188128,102130.0,102120.0,0.006]
[1738354815179,0.34188128,102130.0,102120.0,0.0159]
[1738354815541,0.34188128,102130.0,102120.0,0.0109]
[1738354815964,0.34188128,102130.0,102120.0,0.0149]
[1738354816577,0.34188128,102130.0,102120.0,0.161786]
[1738354816988,0.34188128,102130.0,102120.0,0.0149]
[1738354817580,0.00125642,102130.0,102120.0,0.3410083]
[1738354817945,0.00125642,102130.0,102120.0,0.34002916]
[1738354819641,0.00125642,102130.0,102120.0,0.49002916]
[1738354820226,0.00125642,102130.0,102120.0,1.03202916]
[1738354820884,0.00125642,102130.0,102120.0,1.02212916]
[1738354821029,0.00125642,102130.0,102120.0,1.03202916]
[1738354821243,0.00125642,102130.0,102120.0,1.10263674]
[1738354821417,1.30636306,102130.0,102120.0,0.73514316]
[1738354822068,1.30636306,102130.0,102120.0,0.547]
[1738354822424,1.30636306,102130.0,102120.0,0.5569]
[1738354823062,1.30636306,102130.0,102120.0,0.0149]
[1738354823235,1.30636306,102130.0,102120.0,0.05857243]
[1738354824699,1.2416457,102130.0,102120.0,0.05857243]
[1738354825165,1.3706822,102130.0,102120.0,0.005]
[1738354825492,1.2416457,102130.0,102120.0,0.005]
[1738354825694,1.2416457,102130.0,102120.0,0.0149]
[1738354826705,1.3061799,102130.0,102120.0,0.0149]
[1738354827724,0.9657382,102130.0,102120.0,0.161786]
[1738354827877,0.14812742,102130.0,102120.0,0.0149]
[1738354828078,0.14812742,102130.0,102120.0,0.161786]
[1738354828483,0.00125642,102130.0,102120.0,0.161786]
[1738354828723,0.00125642,102130.0,102120.0,0.25902916]
[1738354828925,0.00125642,102130.0,102120.0,0.88372916]
[1738354829445,0.00125642,102130.0,102120.0,1.03372916]
[1738354830051,0.00125642,102130.0,102120.0,1.05685126]
[1738354830284,0.00125642,102130.0,102120.0,0.5939905]
[1738354830485,0.00125642,102130.0,102120.0,0.54045126]
[1738354830867,0.00125642,102130.0,102120.0,0.0878221]
[1738354830868,0.34169812,102130.0,102120.0,0.0878221]
[1738354831095,0.34169812,102130.0,102120.0,0.0150221]
[1738354831530,0.34169812,102130.0,102120.0,0.0051221]
[1738354831661,0.34169812,102130.0,102120.0,0.0010221]
[1738354831869,0.34169812,102130.0,102120.0,0.0060221]
[1738354832076,0.34069812,102130.0,102120.0,0.0060221]
[1738354832280,0.34169812,102130.0,102120.0,0.009]
[1738354832458,0.52701979,102130.0,102110.0,0.00026629]
[1738354832692,0.5340274,102120.0,102110.0,0.00026629]
[1738354832901,1.49850918,102120.0,102110.0,0.00026629]
[1738354833106,1.59575234,102120.0,102110.0,0.00026629]
[1738354833682,1.40218164,102120.0,102110.0,0.00526629]
[1738354834575,1.59575234,102120.0,102110.0,0.00526629]
[1738354834892,1.59575234,102120.0,102110.0,0.00026629]
[1738354835589,1.30493848,102120.0,102110.0,0.00026629]
[1738354835795,1.16105248,102120.0,102110.0,0.00026629]
[1738354836029,0.003,102120.0,102110.0,0.32391086]
[1738354836272,0.54357812,102130.0,102120.0,0.0010221]
[1738354836479,0.34774912,102130.0,102120.0,0.0010221]
[1738354836639,0.00025642,102130.0,102120.0,0.24613047]
[1738354836848,0.00025642,102130.0,102120.0,0.24515126]
[1738354837649,0.34069812,102130.0,102120.0,0.0010221]
[1738354837904,0.53655012,102130.0,102110.0,0.08578839]
[1738354838063,0.73238812,102130.0,102110.0,0.42855139]
[1738354838269,0.3404567,102120.0,102110.0,0.07878839]
[1738354838468,0.96448178,102120.0,102110.0,0.32391081]
[1738354838663,0.96448178,102120.0,102110.0,0.32293155]
[1738354838908,0.19382712,102130.0,102120.0,0.0010221]
[1738354839233,0.34069812,102130.0,102120.0,0.0010221]
[1738354839828,0.147886,102120.0,102110.0,0.00826629]
[1738354840027,1.30493848,102120.0,102110.0,0.00026629]
[1738354840229,1.49850918,102120.0,102110.0,0.00026629]
[1738354840431,1.30493848,102120.0,102110.0,0.00026629]
[1738354840639,1.49850918,102120.0,102110.0,0.00026629]
[1738354840864,1.6931091,102120.0,102110.0,0.00026629]
[1738354841424,1.59575234,102120.0,102110.0,0.00026629]
[1738354841629,1.40218164,102120.0,102110.0,0.00026629]
[1738354842029,1.30593848,102120.0,102110.0,0.00826629]
[1738354842234,0.3414567,102120.0,102110.0,0.00928839]
[1738354842438,0.147886,102120.0,102110.0,0.00528839]
[1738354842660,0.3504567,102120.0,102110.0,0.15318839]
[1738354842859,0.01,102120.0,102110.0,0.32893155]
[1738354843074,0.34070312,102130.0,102120.0,0.0010221]
[1738354843221,1.3051849,102130.0,102120.0,0.0010221]
[1738354843422,0.34070312,102130.0,102120.0,0.1480302]
[1738354843628,0.19382712,102130.0,102120.0,0.15456957]
[1738354843820,0.00025642,102130.0,102120.0,0.15456957]
[1738354844026,0.53050412,102140.0,102120.0,0.35040957]
[1738354844237,1.4949859,102140.0,102120.0,0.35040957]
[1738354844438,1.4949859,102140.0,102120.0,0.35040657]
[1738354844691,1.4949859,102140.0,102120.0,0.54624557]
[1738354844899,0.003,102130.0,102120.0,0.25181273]
[1738354845116,0.391607,102150.0,102130.0,0.3437121]
[1738354845117,0.7320257,102150.0,102130.0,0.3437121]
[1738354845312,0.146871,102130.0,102120.0,0.79381273]
[1738354845535,0.3404417,102130.0,102120.0,0.54966147]
[1738354845679,0.3404417,102130.0,102120.0,0.00666147]
[1738354846036,0.3404417,102130.0,102120.0,0.00580852]
[1738354846226,0.003,102130.0,102120.0,0.15269452]
[1738354846523,0.003,102130.0,102120.0,0.25091683]
[1738354846764,0.003,102130.0,102120.0,0.24993768]
[1738354847789,0.1965707,102130.0,102120.0,0.24993768]
[1738354848014,0.3434417,102130.0,102120.0,0.00478642]
[1738354848447,0.5370124,102130.0,102120.0,0.00478642]
[1738354848656,0.44068486,102130.0,102120.0,0.00478642]
[1738354849293,0.3434417,102130.0,102120.0,0.00478642]
[1738354849710,0.44068486,102130.0,102120.0,0.00478642]
[1738354849918,0.3434417,102130.0,102120.0,0.00478642]
[1738354850620,0.35516676,102130.0,102120.0,0.00478642]
[1738354850835,0.89333738,102130.0,102120.0,0.00478642]
[1738354851052,0.69976668,102130.0,102120.0,0.00478642]
[1738354852123,0.89333738,102130.0,102120.0,0.00478642]
[1738354853395,0.90231528,102130.0,102120.0,0.00478642]
[1738354854040,1.01443738,102130.0,102120.0,4.7e-07]
[1738354854256,1.16991737,102130.0,102120.0,8.8e-07]
[1738354854493,0.46606599,102120.0,102110.0,0.00022717]
[1738354854703,1.87681839,102120.0,102110.0,0.00022717]
[1738354854928,1.92611839,102120.0,102110.0,0.00022717]
[1738354855139,1.94940762,102120.0,102110.0,1.7e-07]
[1738354855388,0.0289779,102100.0,102080.0,0.00991952]
[1738354855602,0.77481146,102090.0,102080.0,0.01039876]
[1738354855822,1.08565954,102090.0,102080.0,0.01039876]
[1738354857546,1.09465954,102090.0,102080.0,0.01039876]
[1738354858100,1.09465954,102090.0,102080.0,0.00039876]
[1738354858912,1.10363744,102090.0,102080.0,0.00039876]
[1738354860128,1.02553744,102090.0,102080.0,0.00039876]
[1738354860344,0.79286884,102090.0,102080.0,0.00039876]
[1738354860547,0.80904674,102090.0,102080.0,0.00039876]
[1738354860752,1.00261744,102090.0,102080.0,0.00039876]
[1738354860956,0.80006884,102090.0,102080.0,0.00039876]
[1738354861160,0.59674286,102090.0,102080.0,0.00039876]
[1738354861371,0.36120535,102090.0,102080.0,0.00039876]
[1738354861585,0.36840535,102090.0,102080.0,0.00039876]
[1738354861800,0.46564851,102090.0,102080.0,0.00039876]
[1738354862230,0.61564851,102090.0,102080.0,0.00039876]
[1738354862435,0.90657597,102090.0,102080.0,0.00039876]
[1738354862617,0.73918526,102090.0,102080.0,0.00039876]
[1738354862853,0.77145239,102090.0,102080.0,0.00039876]
[1738354863284,0.96502309,102090.0,102080.0,0.00039876]
[1738354863667,0.72198317,102090.0,102080.0,0.00039876]
[1738354863870,0.96502309,102090.0,102080.0,0.00039876]
[1738354864228,0.77145239,102090.0,102080.0,0.00039876]
[1738354864634,0.7362945,102090.0,102080.0,0.00039876]
[1738354864842,0.71300527,102090.0,102080.0,0.00039876]
[1738354865260,0.16763465,102090.0,102080.0,0.00039876]
[1738354865462,0.009,102090.0,102080.0,0.22476386]
[1738354865682,0.009,102090.0,102080.0,0.07782086]
[1738354866053,0.009,102090.0,102080.0,0.22488606]
[1738354866255,0.00925662,102090.0,102080.0,0.28167507]
[1738354866618,0.00925662,102090.0,102080.0,0.42661823]
[1738354866831,0.00925662,102090.0,102080.0,0.42559613]
[1738354867030,0.00925662,102090.0,102080.0,0.42661823]
[1738354867834,0.00025662,102090.0,102080.0,0.42661823]
[1738354868041,0.00325662,102090.0,102080.0,0.59961823]
[1738354868269,0.00325662,102090.0,102080.0,1.14161823]
[1738354869567,0.00325662,102090.0,102080.0,1.33518893]
[1738354869787,0.00425662,102090.0,102080.0,1.34518893]
[1738354869961,0.00025662,102090.0,102080.0,1.14561823]
[1738354870198,0.00025662,102090.0,102080.0,1.14759613]
[1738354870408,0.00125662,102090.0,102080.0,1.14861823]
[1738354870655,0.00125662,102090.0,102080.0,1.15461823]
[1738354873158,0.00125662,102090.0,102080.0,1.16638873]
[1738354875256,0.00125662,102090.0,102080.0,1.35995943]
[1738354875638,0.00125662,102090.0,102080.0,1.16638873]
[1738354878459,0.00125662,102090.0,102080.0,0.93659972]
[1738354878662,1.09486321,102090.0,102080.0,0.88889972]
[1738354878872,0.9657384,102090.0,102080.0,0.91189972]
[1738354879088,0.9657384,102090.0,102080.0,1.06087762]
[1738354879297,1.09486321,102090.0,102080.0,1.06189972]
[1738354879496,1.09486321,102090.0,102080.0,0.38788606]
[1738354880395,1.09486321,102090.0,102080.0,0.41088606]
[1738354880599,1.24179221,102090.0,102080.0,0.26394306]
[1738354880813,1.30638076,102090.0,102080.0,0.18754306]
[1738354881114,1.15945176,102090.0,102080.0,0.33448606]
[1738354881872,1.30638076,102090.0,102080.0,0.01352096]
[1738354882120,1.70185404,102090.0,102080.0,0.01352096]
[1738354882747,1.70185404,102090.0,102080.0,0.00752096]
[1738354882979,1.89645404,102090.0,102080.0,0.00052096]
[1738354883184,1.70274068,102090.0,102080.0,0.00052096]
[1738354883385,1.70574068,102090.0,102080.0,0.00052096]
[1738354883749,1.70274068,102090.0,102080.0,0.00052096]
[1738354883898,1.91987748,102090.0,102080.0,0.00052096]
[1738354884105,1.95534051,102090.0,102080.0,0.00152096]
[1738354884312,1.71174068,102090.0,102080.0,0.00152096]
[1738354884663,1.61438392,102090.0,102080.0,0.00152096]
[1738354885272,1.60722392,102090.0,102080.0,0.00152096]
[1738354885508,1.63776736,102090.0,102080.0,0.00152096]
[1738354885718,1.42298865,102090.0,102080.0,0.00152096]
[1738354885919,0.46562687,102090.0,102080.0,0.00152096]
[1738354886355,0.36126371,102090.0,102080.0,0.00152096]
[1738354886533,0.35701898,102090.0,102080.0,0.00152096]
[1738354888012,0.21008998,102090.0,102080.0,0.00254306]
[1738354888215,0.35701898,102090.0,102080.0,0.00254306]
[1738354889084,0.20108998,102090.0,102080.0,0.00154306]
[1738354889326,0.34801898,102090.0,102080.0,0.00154306]
[1738354889558,0.35701898,102090.0,102080.0,0.00254306]
[1738354889759,0.35701898,102090.0,102080.0,0.00152096]
[1738354890008,0.34989898,102090.0,102080.0,0.00152096]
[1738354890213,0.34989898,102090.0,102080.0,0.00254306]
[1738354890607,0.34989898,102090.0,102080.0,0.00152096]
[1738354890833,0.44714214,102090.0,102080.0,0.00152096]
[1738354893489,0.6408555,102090.0,102080.0,0.00152096]
[1738354894369,1.3408555,102090.0,102080.0,0.00152096]
[1738354896579,1.51014621,102090.0,102080.0,0.00152096]
[1738354896785,1.51912411,102090.0,102080.0,0.00152096]
[1738354897197,1.63648087,102090.0,102080.0,0.00152096]
[1738354897586,1.70829597,102090.0,102080.0,0.00152096]
[1738354897790,1.734759,102090.0,102080.0,0.00152096]
[1738354898197,1.70829597,102090.0,102080.0,0.00152096]
[1738354898634,1.734759,102090.0,102080.0,0.00152096]
[1738354898854,1.7167811,102090.0,102080.0,0.00052096]
[1738354899062,0.1559209,102080.0,102070.0,0.000122]
[1738354899275,1.77902932,102080.0,102070.0,0.000122]
[1738354899485,1.64917279,102080.0,102070.0,0.000122]
[1738354899686,1.60317466,102080.0,102070.0,0.000122]
[1738354902037,1.60817466,102080.0,102070.0,0.000122]
[1738354902672,1.24559849,102080.0,102070.0,0.000122]
[1738354902901,1.25267849,102080.0,102070.0,0.000122]
[1738354903547,1.24767849,102080.0,102070.0,0.000122]
[1738354903969,1.25267849,102080.0,102070.0,0.000122]
[1738354904177,1.25459849,102080.0,102070.0,0.000122]
[1738354904381,1.24559849,102080.0,102070.0,0.000122]
[1738354904797,1.25459849,102080.0,102070.0,0.000122]
[1738354905974,1.25459849,102080.0,102070.0,0.0011441]
[1738354907465,1.24959849,102080.0,102070.0,0.0011441]
[1738354907832,1.25359849,102080.0,102070.0,0.0011441]
[1738354909030,1.35084165,102080.0,102070.0,0.000122]
[1738354910099,1.48001536,102080.0,102070.0,0.000122]
[1738354910316,1.53549326,102080.0,102070.0,0.000122]
[1738354912496,1.53574946,102080.0,102070.0,0.000122]
[1738354913049,1.40657575,102080.0,102070.0,0.000122]
[1738354913279,1.50393251,102080.0,102070.0,0.000122]
[1738354913399,1.44845461,102080.0,102070.0,0.000122]
[1738354915107,1.58660622,102080.0,102070.0,0.000122]
[1738354915559,1.59364622,102080.0,102070.0,0.000122]
[1738354916174,1.61368847,102080.0,102070.0,0.000122]
[1738354916932,1.60968847,102080.0,102070.0,0.000122]
[1738354917131,1.62575525,102080.0,102070.0,0.000122]
[1738354917342,1.61871525,102080.0,102070.0,0.000122]
[1738354917544,1.62575525,102080.0,102070.0,0.000122]
[1738354917771,0.3013499,102060.0,102050.0,0.1420859]
[1738354918106,1.69823408,102060.0,102050.0,0.1420859]
[1738354918234,1.61188895,102060.0,102050.0,0.1420859]
[1738354918592,1.78188895,102060.0,102050.0,0.1420859]
[1738354918799,1.80835198,102060.0,102050.0,0.1420859]
[1738354919008,1.80835198,102060.0,102050.0,0.1270859]
[1738354919214,1.81335198,102060.0,102050.0,0.1270859]
[1738354920602,1.75087105,102060.0,102050.0,0.1270859]
[1738354920803,1.47916436,102060.0,102050.0,0.1270859]
[1738354921894,1.48104436,102060.0,102050.0,0.1270859]
[1738354922039,1.48816436,102060.0,102050.0,0.1270859]
[1738354922485,1.2368292,102060.0,102050.0,0.2085859]
[1738354922691,1.3838012,102060.0,102050.0,0.2085859]
[1738354923124,1.57840112,102060.0,102050.0,0.1270859]
[1738354923288,1.58552112,102060.0,102050.0,0.1270859]
[1738354923733,1.58052112,102060.0,102050.0,0.1270859]
[1738354924148,1.74595888,102060.0,102050.0,0.1270859]
[1738354924351,1.74593678,102060.0,102050.0,0.1270859]
[1738354924494,1.74193678,102060.0,102050.0,0.1270859]
[1738354924695,1.7668453,102060.0,102050.0,0.1270859]
[1738354924895,1.79730833,102060.0,102050.0,0.1270859]
[1738354925144,1.7708453,102060.0,102050.0,0.1270859]
[1738354925496,1.79730833,102060.0,102050.0,0.1270859]
[1738354925696,1.80630833,102060.0,102050.0,0.1270859]
[1738354925938,1.79730833,102060.0,102050.0,0.1270859]
[1738354926448,1.80630833,102060.0,102050.0,0.1270859]
[1738354926820,1.82630833,102060.0,102050.0,0.1270859]
[1738354927059,1.82630833,102060.0,102030.0,0.0320036]
[1738354927060,0.02,102040.0,102030.0,0.0320036]
[1738354927257,0.1589779,102030.0,102020.0,0.00075043]
[1738354927469,0.147029,102020.0,102010.0,0.00122297]
[1738354927671,1.46710136,102020.0,102010.0,0.00122297]
[1738354927871,1.52559368,102020.0,102010.0,0.00122297]
[1738354927990,1.70457158,102020.0,102010.0,9.7e-07]
[1738354928197,0.297044,102010.0,102000.0,0.08499351]
[1738354928398,0.65833877,102010.0,102000.0,0.08499351]
[1738354928593,0.96674226,102010.0,102000.0,0.08499351]
[1738354928793,0.1760359,102000.0,101990.0,0.01806]
[1738354929015,0.1760509,101990.0,101980.0,0.0163693]
[1738354929242,0.57914313,101990.0,101980.0,0.0163693]
[1738354929593,0.19629763,101980.0,101970.0,0.33302489]
[1738354929943,1.4321884,101980.0,101970.0,0.33302489]
[1738354930149,1.65068958,101980.0,101970.0,0.33302489]
[1738354930391,1.64171168,101980.0,101970.0,0.33302489]
[1738354930567,1.47140391,101980.0,101970.0,0.33302489]
[1738354930830,1.63635911,101980.0,101970.0,0.33302489]
[1738354931033,1.78683767,101980.0,101970.0,0.33302489]
[1738354931234,1.8160483,101980.0,101970.0,0.33302489]
[1738354931447,1.8160483,101980.0,101970.0,0.33002489]
[1738354931448,1.59267184,101980.0,101970.0,0.33002489]
[1738354931657,1.41069633,101980.0,101970.0,0.33002489]
[1738354932067,1.41169633,101980.0,101970.0,0.33002489]
[1738354932407,1.41173633,101980.0,101970.0,0.33002489]
[1738354932603,1.40445633,101980.0,101970.0,0.33002489]
[1738354932804,1.41173633,101980.0,101970.0,0.33002489]
[1738354933433,1.56173633,101980.0,101970.0,0.33002489]
[1738354934669,1.56173633,101980.0,101970.0,0.33802489]
[1738354934670,1.56273633,101980.0,101970.0,0.33802489]
[1738354935015,1.89990216,101980.0,101970.0,0.33802489]
[1738354935217,1.92910395,101980.0,101970.0,0.33802489]
[1738354935593,2.08350748,101980.0,101970.0,0.30678779]
[1738354935928,2.08350748,101980.0,101970.0,0.27070868]
[1738354936130,2.08250748,101980.0,101970.0,0.23683055]
[1738354936360,1.98250748,101980.0,101970.0,0.23683055]
[1738354936557,2.01050748,101980.0,101970.0,0.22883055]
[1738354936763,1.98322748,101980.0,101970.0,0.19090826]
[1738354936966,0.42,101940.0,101910.0,4.099e-05]
[1738354937169,0.147217,101890.0,101820.0,0.01017287]
[1738354937393,0.147304,101830.0,101820.0,0.09724316]
[1738354937775,0.26453774,101830.0,101820.0,0.09724316]
[1738354937991,0.167318,101820.0,101810.0,0.00265382]
[1738354938180,1.45596561,101820.0,101810.0,0.09989698]
[1738354938371,1.67789144,101820.0,101810.0,0.00159162]
[1738354938573,1.63634116,101820.0,101810.0,0.00159162]
[1738354938861,1.26748708,101820.0,101810.0,0.00159162]
[1738354939045,1.41480508,101820.0,101810.0,0.00159162]
[1738354939265,1.42260508,101820.0,101810.0,0.00159162]
[1738354939458,0.147333,101810.0,101800.0,0.21226027]
[1738354939628,0.34149883,101810.0,101800.0,0.21226027]
[1738354939829,0.47384516,101810.0,101800.0,0.21226027]
[1738354940092,0.27092417,101810.0,101800.0,0.21226027]
[1738354940279,0.20208583,101810.0,101800.0,0.21226027]
[1738354940483,0.44666199,101810.0,101800.0,0.21226027]
[1738354940692,0.54494911,101810.0,101800.0,0.21226027]
[1738354940833,0.44770595,101810.0,101800.0,0.21226027]
[1738354941263,1.42118473,101820.0,101800.0,0.50960427]
[1738354941462,0.97348178,101820.0,101810.0,0.023]
[1738354941662,0.97348178,101820.0,101810.0,0.247733]
[1738354942045,0.96448178,101850.0,101820.0,0.297318]
[1738354942238,0.96448178,101850.0,101840.0,0.147289]
[1738354942441,0.96448178,101850.0,101840.0,0.36448082]
[1738354942670,1.26485473,101850.0,101840.0,0.12024316]
[1738354943003,1.41212973,101850.0,101840.0,0.023]
[1738354943837,1.50937289,101850.0,101840.0,0.023]
[1738354944038,1.51729289,101850.0,101840.0,0.023]
[1738354944848,1.51829289,101850.0,101840.0,0.031]
[1738354945056,1.76664965,101850.0,101840.0,0.014]
[1738354945236,1.88564965,101850.0,101840.0,0.006]
[1738354945481,0.147333,101810.0,101800.0,0.21226027]
[1738354945685,1.11181478,101810.0,101800.0,0.21273765]
[1738354945892,0.96448178,101810.0,101800.0,0.41713324]
[1738354946099,0.96448178,101810.0,101800.0,0.5143764]
[1738354946298,0.96448178,101830.0,101810.0,0.415865]
[1738354946432,0.96448178,101830.0,101820.0,0.147318]
[1738354946660,0.96448178,101830.0,101820.0,0.170318]
[1738354946864,1.11178578,101830.0,101820.0,0.023]
[1738354947071,1.42196214,101830.0,101820.0,0.023]
[1738354947276,0.147333,101810.0,101800.0,0.36973765]
[1738354947479,0.96448178,101810.0,101800.0,0.45732781]
[1738354947686,0.96448178,101810.0,101800.0,0.37184121]
[1738354947888,0.96448178,101810.0,101800.0,0.42194505]
[1738354948094,0.96448178,101810.0,101800.0,0.44494505]
[1738354948274,0.96448178,101810.0,101800.0,0.69218821]
[1738354948638,0.96548178,101810.0,101800.0,0.77968821]
[1738354948843,0.96548178,101810.0,101800.0,0.39748081]
[1738354949049,1.51043089,101810.0,101800.0,0.21973765]
[1738354949578,1.76043089,101810.0,101800.0,0.21973765]
[1738354949782,1.66043089,101810.0,101800.0,0.21973765]